bitfinex/quotes_SOLUSD_20241202
["timestamp","ask_amount","ask_price","bid_price","bid_amount"]
[1733113915854,12.1041,228.68,228.58,26.32913568]
[1733113916772,20.0,228.65,228.57,26.32913568]
[1733113917560,20.0,228.65,228.56,26.32913568]
[1733113917770,20.0,228.65,228.54,39.44913568]
[1733113918050,20.0,228.65,228.57,26.32913568]
[1733113918252,20.0,228.65,228.57,23.776884]
[1733113918658,20.0,228.65,228.55,26.32913568]
[1733113918859,20.0,228.65,228.51,13.12]
[1733113919068,20.0,228.65,228.52,26.32913568]
[1733113919314,20.0,228.65,228.57,26.32913568]
[1733113919750,20.0,228.65,228.56,26.32913568]
[1733113920174,20.0,228.65,228.55,0.87261286]
[1733113920175,20.0,228.65,228.57,23.776884]
[1733113920371,20.0,228.65,228.56,23.776884]
[1733113920950,20.0,228.65,228.56,63.22601968]
[1733113921156,12.1041,228.68,228.62,23.776884]
[1733113922658,12.1041,228.68,228.58,23.776884]
[1733113922859,12.1041,228.68,228.6,26.32913568]
[1733113923083,12.1041,228.68,228.62,26.32913568]
[1733113923460,12.1041,228.68,228.63,50.10601968]
[1733113923771,12.1041,228.68,228.65,23.776884]
[1733113924152,12.1041,228.68,228.64,36.896884]
[1733113924962,30.8669,228.72,228.64,36.896884]
[1733113925277,31.6239,228.77,228.71,26.32913568]
[1733113925586,31.6239,228.77,228.72,23.776884]
[1733113926578,31.6239,228.77,228.72,36.896884]
[1733113926782,20.0,228.77,228.72,63.22601968]
[1733113926957,12.9893,228.8,228.76,23.776884]
[1733113927156,12.9893,228.8,228.62,72.22688213]
[1733113927370,12.9893,228.8,228.71,23.776884]
[1733113927963,12.9893,228.8,228.73,36.896884]
[1733113928465,12.9893,228.8,228.75,36.896884]
[1733113928674,32.2527,228.82,228.75,36.896884]
[1733113928862,32.2527,228.82,228.77,23.776884]
[1733113929058,0.5117658,228.85,228.79,23.776884]
[1733113929384,12.28509305,228.86,228.79,23.776884]
[1733113930805,12.28509305,228.86,228.81,23.776884]
[1733113931503,12.28509305,228.86,228.78,23.776884]
[1733113931711,12.28509305,228.86,228.78,24.64865465]
[1733113932113,12.28509305,228.86,228.8,23.776884]
[1733113932412,32.715,228.88,228.82,23.776884]
[1733113932794,2.76001,228.9,228.82,23.776884]
[1733113933114,2.76001,228.9,228.84,23.776884]
[1733113933291,2.76001,228.9,228.86,23.776884]
[1733113933808,2.76001,228.9,228.88,23.776884]
[1733113934714,2.76001,228.9,228.89,24.64827452]
[1733113935004,2.76001,228.9,228.82,0.8712947]
[1733113935183,2.76001,228.9,228.83,23.776884]
[1733113936417,2.76001,228.9,228.79,13.9914904]
[1733113936986,2.76001,228.9,228.8,39.44913568]
[1733113937189,2.76001,228.9,228.81,27.20061475]
[1733113937502,2.76001,228.9,228.82,23.776884]
[1733113938209,2.76001,228.9,228.81,23.776884]
[1733113938380,2.76001,228.9,228.83,23.776884]
[1733113938786,2.76001,228.9,228.85,23.776884]
[1733113939917,2.76001,228.9,228.83,23.776884]
[1733113940214,2.76001,228.9,228.85,23.776884]
[1733113940416,2.76001,228.9,228.89,23.776884]
[1733113940799,2.76001,228.9,228.87,23.776884]
[1733113940993,2.76001,228.9,228.89,23.776884]
[1733113943017,2.76001,228.9,228.79,39.44913568]
[1733113943318,2.76001,228.9,228.83,39.44913568]
[1733113943498,2.76001,228.9,228.84,13.99136443]
[1733113944314,2.76001,228.9,228.89,23.776884]
[1733113944622,2.76001,228.9,228.89,24.64807575]
[1733113945325,2.76001,228.9,228.89,37.76807575]
[1733113946017,2.76001,228.9,228.89,24.64807575]
[1733113946591,2.76001,228.9,228.88,23.776884]
[1733113947318,2.76001,228.9,228.83,0.87137051]
[1733113947524,2.76001,228.9,228.8,0.87147003]
[1733113948026,2.76001,228.9,228.81,13.12]
[1733113948322,2.76001,228.9,228.83,39.44913568]
[1733113948617,2.76001,228.9,228.86,13.12]
[1733113948825,2.76001,228.9,228.89,33.12]
[1733113949008,2.76001,228.9,228.89,33.9911214]
[1733113949201,2.76001,228.9,228.89,57.7680054]
[1733113951317,2.76001,228.9,228.89,84.09714108]
[1733113951519,2.76001,228.9,228.89,154.09714108]
[1733113951701,2.76001,228.9,228.89,153.22601968]
[1733113953025,0.5117658,229.08,228.91,13.12]
[1733113953206,0.5117658,229.08,228.91,40.32011118]
[1733113954420,0.5117658,229.08,228.91,49.81960118]
[1733113954629,0.5117658,229.08,228.95,4.374]
[1733113954827,0.5117658,229.08,228.98,17.494]
[1733113955001,0.5117658,229.08,229.02,17.494]
[1733113955333,0.5117658,229.08,229.04,13.12]
[1733113955502,0.5117658,229.08,229.03,36.896884]
[1733113956726,12.9961,229.03,228.77,43.4339]
[1733113956901,6.02205652,229.02,228.78,27.20060812]
[1733113957105,6.02205652,229.02,228.78,0.87147244]
[1733113957597,6.02205652,229.02,228.83,17.494]
[1733113957893,20.0,228.99,228.85,13.12]
[1733113958099,20.0,228.99,228.9,13.12]
[1733113958297,20.0,228.99,228.91,36.896884]
[1733113958513,20.0,229.0,228.91,36.896884]
[1733113958710,1.02205652,228.99,228.91,36.896884]
[1733113959105,20.0,229.0,228.91,36.896884]
[1733113959700,1.02205652,228.99,228.91,36.896884]
[1733113960309,20.0,229.0,228.91,36.896884]
[1733113960712,20.0,229.0,228.93,23.776884]
[1733113960908,20.0,229.0,228.93,36.896884]
[1733113961306,20.0,229.0,228.93,13.12]
[1733113961501,1.02205652,228.99,228.87,41.270884]
[1733113961826,1.02205652,228.99,228.79,5.0]
[1733113961827,1.02205652,228.99,228.83,0.87132221]
[1733113962012,21.02205652,228.99,228.83,0.87132221]
[1733113962620,21.02205652,228.99,228.83,18.36532221]
[1733113962924,21.02205652,228.99,228.87,13.12]
[1733113963129,21.02205652,228.99,228.89,13.12]
[1733113963432,1.02205652,228.99,228.9,36.896884]
[1733113964350,20.0,229.0,228.9,36.896884]
[1733113964517,1.02205652,228.99,228.9,36.896884]
[1733113965026,1.02205652,228.99,228.9,23.776884]
[1733113965518,1.02205652,228.99,228.88,36.896884]
[1733113966104,1.02205652,228.99,228.77,43.4339]
[1733113966313,20.0,228.95,228.78,13.12]
[1733113966513,20.0,228.93,228.75,0.87151508]
[1733113966825,1.02205652,228.92,228.75,0.87151508]
[1733113967200,21.02205652,228.92,228.76,13.12]
[1733113967398,21.02205652,228.92,228.76,17.494]
[1733113967616,20.0,228.88,228.76,13.12]
[1733113967829,1.02205652,228.87,228.68,0.87185192]
[1733113968135,20.0,228.76,228.65,0.87194265]
[1733113969137,20.0,228.76,228.66,13.12]
[1733113969314,20.0,228.76,228.67,0.87211182]
[1733113969813,20.0,228.76,228.61,0.87218093]
[1733113970007,20.0,228.76,228.61,13.99218093]
[1733113970432,20.0,228.8,228.65,13.12]
[1733113970646,20.0,228.8,228.66,0.87199153]
[1733113970813,1.02205652,228.79,228.66,0.87199153]
[1733113971018,1.02205652,228.79,228.67,23.776884]
[1733113971862,31.3042,228.78,228.67,23.776884]
[1733113972143,20.0,228.75,228.67,23.776884]
[1733113972513,1.02205652,228.74,228.63,0.87217336]
[1733113972828,1.02205652,228.74,228.64,0.87229568]
[1733113973032,20.0,228.75,228.64,0.87229568]
[1733113973231,1.02205652,228.74,228.64,0.87229568]
[1733113973829,1.02205652,228.74,228.6,0.87227654]
[1733113974362,20.0,228.75,228.6,0.87227654]
[1733113974523,1.02205652,228.74,228.6,0.87227654]
[1733113974726,1.02205652,228.74,228.61,23.776884]
[1733113975028,1.02205652,228.74,228.48,32.9717]
[1733113975029,20.0,228.7,228.48,32.9717]
[1733113975255,20.0,228.66,228.49,0.87261606]
[1733113975826,20.0,228.66,228.49,18.36661606]
[1733113976236,20.0,228.66,228.53,13.12]
[1733113976417,20.0,228.66,228.54,0.87257784]
[1733113976624,1.02205652,228.65,228.49,0.87257784]
[1733113976822,1.02205652,228.65,228.49,13.99257784]
[1733113978353,20.0,228.61,228.49,0.87257784]
[1733113978521,1.02205652,228.6,228.46,13.12]
[1733113978715,1.02205652,228.6,228.44,0.87283388]
[1733113979550,20.0,228.56,228.42,17.494]
[1733113979743,30.8446,228.59,228.46,17.494]
[1733113980052,30.8446,228.59,228.52,13.12]
[1733113980345,30.8446,228.59,228.54,23.776884]
[1733113980527,12.3402,228.64,228.54,23.776884]
[1733113980729,12.3402,228.64,228.56,23.776884]
[1733113981349,12.3402,228.64,228.58,23.776884]
[1733113981647,12.3402,228.64,228.56,23.776884]
[1733113981852,1.02205652,228.63,228.5,23.776884]
[1733113982024,1.02205652,228.63,228.46,30.70313568]
[1733113982025,20.0,228.61,228.48,23.776884]
[1733113982226,12.3402,228.64,228.5,50.10601968]
[1733113982523,12.3402,228.64,228.52,23.776884]
[1733113982723,12.3402,228.64,228.54,23.776884]
[1733113982951,12.3402,228.64,228.56,23.776884]
[1733113983167,12.3402,228.64,228.55,23.776884]
[1733113983333,12.3402,228.64,228.56,0.87260509]
[1733113983536,12.3402,228.64,228.57,23.776884]
[1733113984849,12.3402,228.64,228.59,36.896884]
[1733113985165,32.1398,228.66,228.6,0.87245925]
[1733113985456,12.9409,228.7,228.61,36.896884]
[1733113986164,12.9409,228.7,228.64,13.12]
[1733113986367,12.9409,228.7,228.65,24.64911413]
[1733113986534,42.2246,228.84,228.65,37.76911413]
[1733113986739,1.02205652,228.83,228.67,36.896884]
[1733113986968,1.02205652,228.83,228.7,13.12]
[1733113987153,42.2246,228.84,228.72,36.896884]
[1733113987338,1.02205652,228.83,228.72,36.896884]
[1733113987669,1.02205652,228.83,228.69,23.776884]
[1733113987835,1.02205652,228.83,228.66,30.70313568]
[1733113987836,1.02205652,228.83,228.71,23.776884]
[1733113988236,20.0,228.81,228.71,23.776884]
[1733113988460,1.02205652,228.83,228.71,23.776884]
[1733113988768,1.02205652,228.83,228.62,70.0]
[1733113988769,5.0,228.81,228.56,23.776884]
[1733113988945,12.0444,228.78,228.55,0.87233881]
[1733113989145,1.02205652,228.77,228.55,0.87233881]
[1733113989668,20.0,228.75,228.58,13.12]
[1733113989963,20.0,228.7,228.58,13.12]
[1733113990137,1.02205652,228.69,228.58,13.12]
[1733113990334,20.0,228.65,228.51,0.87254006]
[1733113990758,20.0,228.65,228.52,17.494]
[1733113991071,20.0,228.65,228.53,0.87261928]
[1733113992648,1.02205652,228.64,228.53,0.87261928]
[1733113993059,1.02205652,228.64,228.49,0.87269286]
[1733113993268,1.02205652,228.64,228.46,39.44913568]
[1733113993455,1.02205652,228.64,228.48,39.44913568]
[1733113993661,1.02205652,228.64,228.49,0.87268113]
[1733113994171,1.02205652,228.64,228.52,17.494]
[1733113994356,20.0,228.6,228.5,13.12]
[1733113994675,20.0,228.6,228.51,0.87276037]
[1733113994869,20.0,228.6,228.5,13.12]
[1733113995164,20.0,228.6,228.47,0.87278698]
[1733113995165,20.0,228.6,228.51,0.87277219]
[1733113995578,32.5219,228.63,228.51,0.87277219]
[1733113995774,32.5219,228.63,228.52,13.12]
[1733113996067,32.5219,228.63,228.54,23.776884]
[1733113996474,1.02205652,228.62,228.54,23.776884]
[1733113996771,20.0,228.6,228.5,0.87275811]
[1733113997475,32.5219,228.63,228.5,0.87275811]
[1733113997664,32.5219,228.63,228.51,13.12]
[1733113997848,32.5219,228.63,228.53,36.896884]
[1733113998045,32.5219,228.63,228.55,23.776884]
[1733113998754,32.5219,228.63,228.53,24.6495774]
[1733114000181,32.5219,228.63,228.53,37.7695774]
[1733114000354,32.5219,228.63,228.53,24.6495774]
[1733114001573,20.0,228.6,228.53,24.6495774]
[1733114001761,32.5219,228.63,228.57,23.776884]
[1733114002075,12.0444,228.68,228.59,36.896884]
[1733114002285,12.0444,228.68,228.61,23.776884]
[1733114002653,13.06645652,228.68,228.55,0.87240396]
[1733114002874,13.06645652,228.68,228.49,0.87260323]
[1733114002875,18.06645652,228.68,228.49,0.87260323]
[1733114003064,18.06645652,228.68,228.44,0.87260323]
[1733114003267,45.5544,228.65,228.39,70.0]
[1733114003463,12.8772,228.63,228.39,0.87295561]
[1733114003780,20.0,228.6,228.41,83.12]
[1733114004077,1.02205652,228.62,228.38,49.6788]
[1733114004078,1.02205652,228.62,228.48,13.12]
[1733114004282,12.8772,228.63,228.5,39.44913568]
[1733114004459,12.8772,228.63,228.51,0.87261135]
[1733114004664,12.8772,228.63,228.57,23.776884]
[1733114004957,12.8772,228.63,228.59,23.776884]
[1733114005375,1.02205652,228.62,228.51,13.12]
[1733114005686,12.8772,228.63,228.52,37.76958487]
[1733114006585,12.8772,228.63,228.53,0.12549]
[1733114006786,12.8772,228.63,228.58,13.12]
[1733114006980,12.8772,228.63,228.54,23.776884]
[1733114007182,1.02205652,228.62,228.54,23.776884]
[1733114007479,1.02205652,228.62,228.44,0.8728601]
[1733114007789,20.0,228.6,228.44,0.8728601]
[1733114008084,1.02205652,228.59,228.45,17.494]
[1733114009278,1.02205652,228.59,228.46,36.896884]
[1733114009477,1.02205652,228.59,228.46,23.776884]
[1733114009680,1.02205652,228.59,228.44,17.494]
[1733114009681,30.8343,228.58,228.44,17.494]
[1733114009888,20.0,228.55,228.44,18.36697083]
[1733114010061,30.8343,228.58,228.45,0.25098]
[1733114010362,30.8343,228.58,228.48,17.494]
[1733114010559,30.8343,228.58,228.46,14.00277047]
[1733114010866,30.8343,228.58,228.49,23.776884]
[1733114011068,30.8343,228.58,228.5,0.87282337]
[1733114011278,30.8343,228.58,228.51,23.776884]
[1733114011584,20.0,228.55,228.49,23.776884]
[1733114011890,30.8343,228.58,228.51,23.776884]
[1733114012087,30.8343,228.58,228.53,23.776884]
[1733114012270,30.8343,228.58,228.51,41.280884]
[1733114012271,46.0211,228.63,228.55,35.11886399]
[1733114012472,46.0211,228.63,228.56,0.8725924]
[1733114012659,46.0211,228.63,228.55,35.11886399]
[1733114012866,46.0211,228.63,228.51,4.374]
[1733114013173,46.0211,228.63,228.52,0.87271073]
[1733114014281,46.0211,228.63,228.53,0.87257066]
[1733114014589,46.0211,228.63,228.56,23.776884]
[1733114014769,46.0211,228.63,228.56,24.6494559]
[1733114015282,46.0211,228.63,228.56,37.7794559]
[1733114015672,12.8772,228.63,228.56,37.7794559]
[1733114018394,12.8772,228.63,228.56,23.776884]
[1733114018559,12.8772,228.63,228.54,13.13]
[1733114019185,12.8772,228.63,228.55,0.87260982]
[1733114020189,12.8772,228.63,228.57,13.13]
[1733114020493,12.8772,228.63,228.6,13.13]
[1733114020661,12.8772,228.63,228.61,23.776884]
[1733114021260,32.803,228.68,228.61,23.776884]
[1733114021467,32.803,228.68,228.61,36.906884]
[1733114021666,32.803,228.68,228.62,14.00230822]
[1733114021882,32.803,228.68,228.61,23.776884]
[1733114022273,20.0,228.65,228.52,0.87246803]
[1733114022859,20.0,228.65,228.52,18.37746803]
[1733114023711,20.0,228.65,228.54,13.13]
[1733114023903,20.0,228.65,228.55,13.13]
[1733114024110,20.0,228.65,228.56,13.13]
[1733114024424,20.0,228.65,228.57,23.776884]
[1733114025519,1.02205652,228.64,228.53,13.13]
[1733114025792,1.02205652,228.64,228.5,0.87255555]
[1733114025993,30.2901,228.59,228.49,13.13]
[1733114026167,20.0,228.56,228.44,0.87277671]
[1733114026365,20.0,228.56,228.4,97.20209325]
[1733114026665,1.02205652,228.58,228.4,97.20209325]
[1733114026666,1.02205652,228.58,228.48,4.375]
[1733114026898,12.4326,228.63,228.51,17.505]
[1733114027072,12.4326,228.63,228.52,14.00254487]
[1733114027703,12.4326,228.63,228.57,36.906884]
[1733114028070,12.4326,228.63,228.58,0.87255762]
[1733114028278,30.2901,228.65,228.59,41.281884]
[1733114028505,30.2901,228.65,228.61,36.906884]
[1733114029580,12.4326,228.68,228.61,36.906884]
[1733114029795,12.4326,228.68,228.62,0.87237141]
[1733114030492,12.4326,228.68,228.64,13.13]
[1733114030693,30.2901,228.7,228.65,23.776884]
[1733114030898,30.2901,228.7,228.66,13.13]
[1733114031096,12.4326,228.73,228.66,13.13]
[1733114031097,12.4326,228.73,228.67,36.906884]
[1733114031293,30.2901,228.77,228.69,23.776884]
[1733114031470,30.2901,228.77,228.56,5.0]
[1733114031471,1.02205652,228.76,228.64,23.776884]
[1733114032403,20.0,228.74,228.64,23.776884]
[1733114032603,20.0,228.74,228.63,13.13]
[1733114032804,20.0,228.74,228.64,24.64911096]
[1733114033690,20.0,228.74,228.64,23.776884]
[1733114033889,20.0,228.74,228.65,0.87227643]
[1733114034706,1.02205652,228.73,228.61,0.87225201]
[1733114034886,1.02205652,228.73,228.62,23.776884]
[1733114035083,1.02205652,228.73,228.64,23.776884]
[1733114035401,30.2901,228.77,228.66,23.776884]
[1733114035608,31.31215652,228.77,228.68,23.776884]
[1733114036207,30.2901,228.77,228.68,23.776884]
[1733114036395,30.2901,228.77,228.7,23.776884]
[1733114036701,30.2901,228.77,228.72,23.776884]
[1733114037000,30.2901,228.77,228.71,0.87206222]
[1733114037210,30.2901,228.77,228.68,23.776884]
[1733114037408,30.2901,228.77,228.69,0.87203412]
[1733114037582,30.2901,228.77,228.7,23.776884]
[1733114038384,30.2901,228.77,228.64,0.87206544]
[1733114038585,30.2901,228.77,228.67,23.776884]
[1733114038910,30.2901,228.77,228.69,23.776884]
[1733114040212,30.2901,228.77,228.71,23.776884]
[1733114040716,31.5704,228.82,228.73,23.776884]
[1733114041204,1.02205652,228.81,228.68,23.776884]
[1733114041396,1.02205652,228.81,228.65,0.87204187]
[1733114041585,1.02205652,228.81,228.63,70.0]
[1733114041785,20.0,228.79,228.64,0.87204674]
[1733114042192,1.02205652,228.78,228.64,0.87204674]
[1733114042512,1.02205652,228.78,228.61,13.13]
[1733114042513,20.0,228.74,228.61,0.87216097]
[1733114042684,20.0,228.74,228.59,26.32913568]
[1733114042889,42.7643,228.77,228.62,26.32913568]
[1733114043087,42.7643,228.82,228.68,13.13]
[1733114043291,42.7643,228.82,228.71,26.32913568]
[1733114043510,42.7643,228.82,228.72,0.87181677]
[1733114043913,12.985,228.87,228.73,36.906884]
[1733114044106,14.00705652,228.87,228.75,23.776884]
[1733114044303,12.985,228.87,228.77,23.776884]
[1733114044605,14.00705652,228.87,228.78,14.00173831]
[1733114044793,12.985,228.87,228.78,0.87173831]
[1733114045299,14.00705652,228.87,228.78,0.87173831]
[1733114045489,14.00705652,228.87,228.72,23.776884]
[1733114045695,14.00705652,228.87,228.74,23.776884]
[1733114046022,12.985,228.87,228.76,23.776884]
[1733114046224,12.985,228.87,228.78,23.776884]
[1733114046393,14.00705652,228.87,228.78,23.776884]
[1733114046595,12.985,228.87,228.78,23.776884]
[1733114046902,14.00705652,228.87,228.78,23.776884]
[1733114047103,14.00705652,228.87,228.71,13.13]
[1733114047104,12.985,228.87,228.8,23.776884]
[1733114047305,12.985,228.87,228.81,0.8716759]
[1733114047700,12.985,228.87,228.8,23.776884]
[1733114048513,12.985,228.87,228.74,0.87165735]
[1733114048719,12.985,228.87,228.75,36.906884]
[1733114048898,12.985,228.87,228.77,23.776884]
[1733114049223,12.985,228.87,228.79,23.776884]
[1733114050420,12.985,228.87,228.81,23.776884]
[1733114050593,12.3465,228.93,228.83,23.776884]
[1733114050795,12.3465,228.93,228.84,0.87148887]
[1733114051127,12.3465,228.93,228.85,23.776884]
[1733114051502,12.3465,228.93,228.84,0.87148887]
[1733114051901,12.3465,228.93,228.82,36.906884]
[1733114052113,12.3465,228.93,228.87,13.13]
[1733114052303,12.3465,228.93,228.88,24.64823229]
[1733114052620,12.3465,228.93,228.83,0.87135173]
[1733114052816,12.3465,228.93,228.84,23.776884]
[1733114053001,12.3465,228.93,228.86,23.776884]
[1733114053198,12.3465,228.93,228.85,0.87144664]
[1733114053503,1.02205652,228.92,228.81,0.87153941]
[1733114053710,1.02205652,228.92,228.8,13.13]
[1733114053905,12.3465,228.93,228.81,0.87158381]
[1733114054105,20.0,228.9,228.81,0.87158381]
[1733114054794,20.0,228.9,228.82,23.776884]
[1733114055012,20.0,228.9,228.83,0.87156477]
[1733114055230,20.0,228.9,228.84,23.776884]
[1733114055403,20.0,228.9,228.82,13.13]
[1733114056030,20.0,228.9,228.83,0.87158397]
[1733114056524,1.02205652,228.89,228.74,0.87163304]
[1733114056828,31.5233,228.88,228.75,20.0]
[1733114057020,31.5233,228.88,228.76,0.87164353]
[1733114057198,31.5233,228.88,228.76,14.00164353]
[1733114057826,43.8698,228.93,228.8,13.13]
[1733114058000,43.8698,228.93,228.81,0.87154421]
[1733114058198,1.02205652,228.92,228.81,0.87154421]
[1733114058399,1.02205652,228.92,228.78,13.13]
[1733114058400,1.02205652,228.92,228.78,14.00157557]
[1733114058632,1.02205652,228.92,228.8,13.13]
[1733114059013,20.0,228.9,228.8,0.87160721]
[1733114059328,20.0,228.9,228.81,36.906884]
[1733114059505,20.0,228.9,228.82,0.87154089]
[1733114060028,1.02205652,228.89,228.71,70.0]
[1733114060208,1.02205652,228.89,228.71,70.8717724]
[1733114060416,1.02205652,228.89,228.72,13.13]
[1733114060598,1.02205652,228.89,228.73,0.87176468]
[1733114061729,43.8698,228.93,228.79,13.13]
[1733114061905,43.8698,228.93,228.81,13.13]
[1733114062106,43.8698,228.93,228.82,0.87148541]
[1733114062433,43.8698,228.93,228.83,36.906884]
[1733114062734,43.8698,228.93,228.84,0.87146291]
[1733114062910,43.8698,228.93,228.8,13.13]
[1733114063111,1.02205652,228.92,228.81,23.776884]
[1733114063415,20.0,228.9,228.76,23.776884]
[1733114063724,21.02205652,228.89,228.75,14.00160587]
[1733114064319,1.02205652,228.89,228.75,0.87160587]
[1733114064634,20.0,228.9,228.76,0.87176407]
[1733114065002,43.8698,228.93,228.78,13.13]
[1733114065237,1.02205652,228.92,228.81,13.13]
[1733114065409,43.8698,228.93,228.81,14.00158478]
[1733114065725,43.8698,228.93,228.83,13.13]
[1733114066407,43.8698,228.93,228.86,13.13]
[1733114066612,43.8698,228.93,228.86,14.00140196]
[1733114067330,43.8698,228.93,228.83,0.87144771]
[1733114068430,43.8698,228.93,228.84,0.87146232]
[1733114068744,43.8698,228.93,228.86,13.13]
[1733114069314,43.8698,228.93,228.87,0.87141152]
[1733114069509,43.8698,228.93,228.84,23.776884]
[1733114069824,43.8698,228.93,228.83,14.00141152]
[1733114070607,43.8698,228.93,228.83,0.87141152]
[1733114070912,43.8698,228.93,228.86,13.13]
[1733114071423,43.8698,228.93,228.85,23.776884]
[1733114072013,43.8698,228.93,228.86,14.00148045]
[1733114072322,43.8698,228.93,228.85,23.776884]
[1733114072813,43.8698,228.93,228.81,23.776884]
[1733114073026,43.8698,228.93,228.83,23.776884]
[1733114073427,43.8698,228.93,228.83,36.906884]
[1733114073824,43.8698,228.93,228.84,0.87145006]
[1733114074411,43.8698,228.93,228.85,13.13]
[1733114075511,43.8698,228.93,228.84,14.00145006]
[1733114076016,43.8698,228.93,228.85,36.906884]
[1733114076331,43.8698,228.93,228.88,13.13]
[1733114077628,12.3465,228.93,228.89,0.87133226]
[1733114077828,25.9082,228.99,228.89,0.87133226]
[1733114078136,25.9082,228.99,228.91,13.13]
[1733114078436,25.9082,228.99,228.88,4.375]
[1733114078437,7.0494,228.99,228.93,13.13]
[1733114078740,18.8588,229.04,228.94,0.87105529]
[1733114078910,18.8588,229.04,228.96,17.505]
[1733114079116,18.8588,229.04,228.97,0.87097113]
[1733114080335,18.8588,229.04,228.95,13.13]
[1733114080543,18.8588,229.04,228.98,13.13]
[1733114080722,18.8588,229.04,228.98,14.00093485]
[1733114080925,18.8588,229.04,228.98,13.13]
[1733114081130,18.8588,229.04,228.94,13.13]
[1733114081329,18.8588,229.04,228.98,13.13]
[1733114081623,18.8588,229.04,228.98,0.87092506]
[1733114082440,18.8588,229.04,228.97,13.13]
[1733114082644,18.8588,229.04,228.98,0.87093693]
[1733114083314,7.0494,229.05,229.0,13.13]
[1733114083514,7.0494,229.05,229.01,0.87082435]
[1733114083728,20.0,229.07,229.01,0.87082435]
[1733114083943,0.5117658,229.08,229.03,13.13]
[1733114084229,0.5117658,229.08,229.04,0.87067761]
[1733114084465,0.5117658,229.08,229.06,13.13]
[1733114084627,0.5117658,229.08,229.07,0.87063245]
[1733114084919,0.5117658,229.08,228.91,70.0]
[1733114084920,7.4219,229.06,228.91,70.0]
[1733114085133,8.5106697,229.06,228.92,0.28485043]
[1733114086036,20.0,229.03,228.87,21.76296099]
[1733114086242,1.08909071,229.02,228.83,21.01258427]
[1733114086544,20.0,228.98,228.83,21.298241]
[1733114086848,20.0,228.98,228.83,35.42711102]
[1733114087530,20.0,228.98,228.85,21.50246511]
[1733114088634,20.0,228.98,228.84,34.39468832]
[1733114088948,20.0,228.93,228.83,0.99887002]
[1733114089147,1.08934576,228.92,228.83,0.99887002]
[1733114089726,1.08934576,228.92,228.75,0.28623774]
[1733114090035,6.4294,228.91,228.76,13.13]
[1733114090235,20.0,228.88,228.77,0.28634583]
[1733114091540,20.0,228.88,228.79,13.13]
[1733114091744,20.0,228.88,228.8,24.062982]
[1733114092440,6.4294,228.91,228.8,37.192982]
[1733114093126,6.4294,228.91,228.82,23.776884]
[1733114093440,6.4294,228.91,228.83,0.28605767]
[1733114094343,6.4294,228.91,228.83,4.66105767]
[1733114095744,6.4294,228.91,228.83,0.28605767]
[1733114095933,6.4294,228.91,228.82,28.151884]
[1733114097660,6.4294,228.91,228.8,28.4379574]
[1733114101543,20.0,228.88,228.8,28.4379574]
[1733114101928,6.4294,228.91,228.8,28.4379574]
[1733114102639,6.4294,228.91,228.8,41.5679574]
[1733114102842,6.4294,228.91,228.8,42.56695839]
[1733114103048,6.4294,228.91,228.83,4.375]
[1733114103249,6.4294,228.91,228.84,24.06273882]
[1733114105149,6.4294,228.91,228.84,0.28585482]
[1733114105939,6.4294,228.91,228.81,0.28613611]
[1733114106441,20.0,228.88,228.81,0.28613611]
[1733114106648,6.4294,228.91,228.81,0.28613611]
[1733114107048,6.4294,228.91,228.81,24.06302011]
[1733114108768,20.0,228.88,228.81,0.28613611]
[1733114108945,20.0,228.88,228.78,0.28645806]
[1733114109141,20.0,228.88,228.73,0.28666316]
[1733114109571,20.0,228.88,228.73,13.41666316]
[1733114109779,20.0,228.88,228.74,17.505]